Cogmind - Beta 15 @@@ ROGUE MODE // 2025.06.01 @ 18:19:12 Player: laeb2 Result: Destroyed by S-27 Virus with Autogun Performance ------------- Evolutions (3) 1500 Regions Visited (7) 1400 Robots Destroyed (134) 670 Value Destroyed (6234) 6234 Prototype IDs (7) 140 Alien Tech Used (0) 0 Bonus (2785) 2785 TOTAL SCORE: 12729 Bonus ------- High Alert Combat Kills 603 Follower Combat Kills 282 Entered Garrisons 400 Used RIF Installer 1500 Cogmind --------- Core Integrity 0/700 Matter 173/300 Energy 25/100 System Corruption 16% Temperature Cool (40) Movement Treading (480) Ox4 Location -7/Garrison Parts ------- > --- POWER (1) -------- (None) > --- PROPULSION (2) --- Light Treads > --- UTILITY (8) ------ Huge Storage Unit Advanced Targeting Computer Improved Melee Analysis Suite Target Analyzer Improved Hacking Suite Relay Coupler [Grunt] (5) Relay Coupler [Sentry] (15) > --- WEAPON (2) ------- Field Laser Field Laser > --- INVENTORY (25) --- Improved Deuterium Engine Improved Heat Sink Improved Heat Sink Relay Coupler [Swarmer] (23) Relay Coupler [Cutter] (29) Relay Coupler [Grunt] (24) Relay Coupler [Grunt] (35) Relay Coupler [Grunt] (33) Relay Coupler [Grunt] (28) Relay Coupler [Grunt] (26) Relay Coupler [Brawler] (28) Relay Coupler [Duelist] (42) Relay Coupler [Sentry] (22) Relay Coupler [Sentry] (18) Relay Coupler [Heavy] (15) Relay Coupler [Behemoth] (9) Heavy EM Shotgun Arc Projector Precision Shock Rifle Field Laser Improved Grenade Launcher Remote Datajack Remote Datajack Katana Peak State ------------ > --- POWER ------------ Micro Nuclear Core > --- PROPULSION ------- Wheel Antigrav System > --- UTILITY ---------- Huge Storage Unit Advanced Targeting Computer Improved Melee Analysis Suite Target Analyzer Improved Hacking Suite Relay Coupler [Grunt] Relay Coupler [Sentry] Relay Coupler [Hunter] > --- WEAPON ----------- Advanced Beam Rifle Remote Datajack > --- INVENTORY -------- Improved Deuterium Engine Improved Heat Sink Relay Coupler [Swarmer] Relay Coupler [Cutter] Relay Coupler [Grunt] Relay Coupler [Grunt] Relay Coupler [Grunt] Relay Coupler [Grunt] Relay Coupler [Grunt] Relay Coupler [Grunt] Relay Coupler [Brawler] Relay Coupler [Duelist] Relay Coupler [Sentry] Relay Coupler [Heavy] Relay Coupler [Behemoth] Heavy EM Shotgun Arc Projector Precision Shock Rifle Field Laser Field Laser Field Laser Improved Grenade Launcher Remote Datajack Katana [Rating: 55] Favorites ----------- Power Ion Engine Engine Ion Engine Power Core Micro Nuclear Core Propulsion Armored Wheel Treads Light Treads Leg Aluminum Leg Wheel Armored Wheel Hover Unit Antigrav System Utility Huge Storage Unit Device Improved Heat Sink Storage Huge Storage Unit Processor Target Analyzer Hackware Improved Hacking Suite Protection Medium Armor Plating Weapon EM Pulse Gun Energy Gun EM Pulse Gun Ballistic Gun Shotgun Ballistic Cannon Flak Cannon Launcher Rocket Launcher Special Weapon Remote Datajack Impact Weapon Maul Slashing Weapon Katana Build | -11 -10 -9 -8 -8 -8 -7 -7 ------- Run | Yrd Mat Mat Mat Gar Mat Fac Gar Slots Evolved 6 | . . 2 2 . . 2 . Power . | . . . . . . . . Propulsion . | . . . . . . . . Utility 6 | . . 2 2 . . 2 . Weapon . | . . . . . . . . Parts Attached 111 | 7 10 16 8 28 13 14 15 Power 12 | 1 . 3 . 5 1 . 2 Engine 9 | 1 . 2 . 4 1 . 1 Core 3 | . . 1 . 1 . . 1 Reactor . | . . . . . . . . Propulsion 18 | 2 2 2 2 2 1 2 5 Treads 5 | 2 . . . . . 2 1 Leg 1 | . . . . . . . 1 Wheel 10 | . 2 2 2 2 1 . 1 Hover 2 | . . . . . . . 2 Flight . | . . . . . . . . Utility 44 | 2 6 4 5 7 7 5 8 Device 11 | 1 1 1 2 3 1 1 1 Storage 4 | 1 3 . . . . . . Processor 8 | . 2 1 . . 2 2 1 Hackware 14 | . . . 1 3 3 1 6 Protection 7 | . . 2 2 1 1 1 . Artifact . | . . . . . . . . Weapon 37 | 2 2 7 1 14 4 7 . Energy Gun 19 | 1 2 3 . 5 3 5 . Energy Cannon . | . . . . . . . . Ballistic Gun 5 | 1 . 2 . 2 . . . Ballistic Cannon 6 | . . 2 1 2 1 . . Launcher 3 | . . . . 2 . 1 . Special Weapon 1 | . . . . 1 . . . Impact Weapon 1 | . . . . 1 . . . Slashing Weapon 2 | . . . . 1 . 1 . Piercing Weapon . | . . . . . . . . Special Melee Weapon . | . . . . . . . . Unidentified Prototypes 3 | . . 1 . . 1 1 . Parts Lost 42 | . 1 4 3 14 2 11 7 Power 5 | . . . . 2 1 1 1 Propulsion 12 | . . 2 1 2 1 2 4 Utility 12 | . . . 2 5 . 4 1 Weapon 13 | . 1 2 . 5 . 4 1 Highest Loss Streak 7 | . 1 2 2 4 2 7 3 To Critical Strikes . | . . . . . . . . Average Backups 22 | 5 14 24 24 24 24 23 23 Power 2 | . 2 3 3 2 . 1 1 Propulsion 2 | 2 1 3 3 3 1 2 . Utility 9 | . 6 9 5 7 14 12 13 Weapon 7 | . 3 8 10 9 6 5 7 Tool/Special . | . . . . . . . . Unused Backups 45 | . 6 10 5 6 1 2 15 Power 4 | . 1 2 . . . 1 . Propulsion 5 | . 2 1 2 . . . . Utility 22 | . 2 4 . 3 . . 13 Weapon 13 | . 1 3 3 3 1 1 1 Tool/Special 1 | . . . . . . . 1 Average Slot Usage (%) 92 | . 99 98 98 88 96 87 82 Engine 7 | . 14 7 9 8 9 4 . Treads 3 | . 14 . . . . 5 . Wheel 13 | . 13 21 17 16 17 8 3 Device 9 | . 3 5 6 16 14 9 1 Storage 10 | . 17 11 9 9 9 7 7 Processor 9 | . 6 12 7 . 7 16 25 Hackware 7 | . . . 2 6 17 10 21 Protection 9 | . . 14 27 14 2 7 . Energy Gun 11 | . 26 14 . 8 9 11 3 Ballistic Gun 1 | . 1 2 10 1 . . . Ballistic Cannon 2 | . . 5 7 4 2 . . Special Weapon 1 | . . . . . 5 . 5 Peak Build Rating 55 | 7 10 24 27 37 42 48 55 Average Rating 28 | 5 8 21 25 28 38 43 43 On Entrance 22 | . 7 10 20 27 36 39 43 Naked Turns . | . . . . . . . . Heaviest Build 116 | 15 93 102 114 116 105 111 93 Greatest Support 40 | 40 40 32 28 24 24 24 20 Greatest Overweight (x) 28 | . 2 6 4 8 8 9 28 Average Overweight (x) 4 | . . 2 3 4 3 7 8 Largest Inventory Capacity 25 | 8 25 25 25 25 25 25 25 Average Capacity 23 | 7 18 25 25 25 25 25 25 Most Carried 25 | 8 22 25 25 25 25 25 25 Average Carried 22 | 5 14 24 24 24 24 23 23 Final Capacity 25 | 8 25 25 25 25 25 25 25 Final Carried 25 | 7 22 23 25 25 25 25 24 Class Distribution -------------------- 51% | Mutant 43% | Bothacker-Mutant 4% | Scavenger-Mutant Dominant Class ---------------- Mutant | -10/Materials Mutant | -9/Materials Mutant | -8/Materials Mutant | -8/Garrison Bothacker-Mutant | -8/Materials Bothacker-Mutant | -7/Factory Bothacker-Mutant | -7/Garrison Resources | -11 -10 -9 -8 -8 -8 -7 -7 ----------- Run | Yrd Mat Mat Mat Gar Mat Fac Gar Matter Collected 3209 | 261 337 294 331 1038 356 190 402 Remotely . | . . . . . . . . Salvage Created 4634 | 139 937 945 271 1082 342 699 219 Parts 255 | 12 67 60 14 49 12 34 7 Haulers Intercepted 10 | . 2 2 2 . 3 1 . Recyclers Shooed 1 | . 1 . . . . . . Parts Field Recycled . | . . . . . . . . Retrieved Matter . | . . . . . . . . Parts Self-Destructed . | . . . . . . . . Prevented . | . . . . . . . . Kills | -11 -10 -9 -8 -8 -8 -7 -7 ------- Run | Yrd Mat Mat Mat Gar Mat Fac Gar Combat Hostiles Destroyed 96 | . 14 16 5 37 3 17 4 Melee 1 | . . . . 1 . . . Guns 51 | . 11 14 2 14 3 4 3 Cannons 19 | . . 2 3 12 . 2 . AOE 23 | . 3 . . 8 . 11 1 Classes Destroyed 13 | 2 6 1 1 3 . . . Worker 8 | . 4 2 . . . 2 . Builder 5 | . 2 3 . . . . . Tunneler 6 | 3 3 . . . . . . Hauler 10 | . 2 2 2 . 3 1 . Recycler 3 | 1 . . . . 1 1 . Watcher 5 | . 2 3 . . . . . Swarmer 16 | . 3 . . 7 . 4 2 Cutter 1 | . . . . 1 . . . Grunt 56 | . 11 13 3 18 1 10 . Duelist 2 | . . . . . 1 1 . Sentry 9 | . . 3 1 5 . . . Hunter 2 | . . . 1 . 1 . . Programmer 10 | . . . . 5 . 2 3 Butcher 1 | . . . . 1 . . . Best Kill Streak 7 | 2 5 7 3 5 2 5 2 Combat Bots Only 5 | . 5 3 2 5 2 4 2 Max Kills in Single Turn 4 | 1 2 1 1 3 1 4 1 Gunslinging 1 | . 1 . . 1 . . . Exploded 3 | . 2 . . 3 . 3 1 Melee 1 | . . . . 1 . . . Uniques/NPCs Destroyed . | . . . . . . . . Combat | -11 -10 -9 -8 -8 -8 -7 -7 -------- Run | Yrd Mat Mat Mat Gar Mat Fac Gar Hostile Shots Fired 618 | . 54 55 25 225 29 124 106 Missed 175 | . 16 17 8 59 14 25 36 Hits 443 | . 38 38 17 166 15 99 70 Melee 4 | . . . . 3 . 1 . Projectile 439 | . 38 38 17 163 15 98 70 Critical Strikes 23 | . 1 . 1 10 1 7 3 Part Disruptions 2 | . . . . 1 . 1 . Damage Taken 6578 | . 505 505 212 2467 231 1615 1043 Core 1426 | . 153 68 13 475 16 368 333 Absorbed by Shields 55 | . . . . 55 . . . Redirected to Shielding 52 | . . 11 3 38 . . . Core Remaining (%) 57 | 100 38 83 . . 8 . . Volleys Fired 406 | 12 61 51 24 136 24 42 56 Largest 2 | 2 2 2 2 2 2 2 2 Hottest 134 | 60 80 100 60 134 111 130 126 Shots Fired 694 | 24 114 102 48 236 34 64 72 Gun 519 | 24 114 90 31 148 20 47 45 Cannon 112 | . . 12 17 75 1 7 . Launcher 16 | . . . . 9 . 7 . Special 47 | . . . . 4 13 3 27 Kinetic 216 | 12 . 30 48 118 1 7 . Thermal 185 | . . . . 97 7 39 42 Explosive 16 | . . . . 9 . 7 . Electromagnetic 230 | 12 114 72 . 8 13 8 3 Robot Hit Streak 27 | 7 9 10 16 27 12 13 9 Robot Miss Streak 8 | 3 5 6 5 8 4 4 3 Penetration Max . | . . . . . . . . Secondary Targets 3 | . 1 . . 1 1 . . Max Gunslinging Chain 1 | . 1 . . 1 1 . . Shots Hit Robots 476 | 13 67 66 41 174 27 46 42 Core Hits 292 | 5 39 39 29 113 14 44 9 Critical Kills 1 | . . 1 . . . . . Critical Parts Destroyed 6 | . . 2 . 4 . . . Critical Strikes 24 | 1 1 5 . 8 . 5 4 Burn 13 | . . . . 4 . 5 4 Destroy 3 | . . 3 . . . . . Corrupt 4 | 1 1 2 . . . . . Smash 4 | . . . . 4 . . . Melee Attacks 37 | . . . . 28 . 3 6 Impact 18 | . . . . 18 . . . Slashing 19 | . . . . 10 . 3 6 Piercing . | . . . . . . . . Sneak Attacks . | . . . . . . . . Combat Hostiles . | . . . . . . . . Follow-up Attacks . | . . . . . . . . Damage Inflicted 10269 | 169 1118 1479 738 3724 529 1931 581 Guns 5709 | 169 929 984 469 1652 280 680 546 Cannons 1957 | . . 271 269 1169 26 222 . Explosions 2336 | . 189 224 . 636 223 1029 35 Melee 267 | . . . . 267 . . . Ramming . | . . . . . . . . Kinetic 3128 | 88 . 435 738 1619 26 222 . Thermal 2995 | . 189 224 . 1095 283 634 570 Explosive 1564 | . . . . 636 . 928 . Electromagnetic 2315 | 81 929 820 . 107 220 147 11 Impact 267 | . . . . 267 . . . Slashing . | . . . . . . . . Piercing . | . . . . . . . . Highest Corruption 16 | . 6 . . 7 7 10 16 Average Corruption 8 | . 4 . . 4 7 9 15 Corruption Purged . | . . . . . . . . Corruption Blocked . | . . . . . . . . Effects 125 | . 23 . . 13 27 13 49 Message Errors 29 | . 8 . . 4 3 1 13 Matter Fused 34 | . 7 . . 6 11 2 8 Heat Flow Errors 16 | . . . . 2 3 3 8 Energy Discharges 14 | . 2 . . . 3 3 6 Data Loss (minor) 19 | . 3 . . 1 4 2 9 Data Loss (major) 2 | . . . . . 1 1 . Misfires 6 | . 2 . . . 2 1 1 Alerts 4 | . 1 . . . . . 3 Weapon Failures 1 | . . . . . . . 1 Overload Shots . | . . . . . . . . Overflow Damage 170 | . . . . 160 . 10 . Projectiles 5 | . . . . . . 5 . Explosions 5 | . . . . . . 5 . Melee 160 | . . . . 160 . . . Knockbacks 41 | . . . 14 21 . 6 . Impact 2 | . . . . 2 . . . Kinetic 31 | . . . 12 15 . 4 . Secondary 8 | . . . 2 4 . 2 . Self-Inflicted Damage 243 | . 75 . . 71 8 73 16 Shots 9 | . 2 . . 2 1 3 1 Rammed . | . . . . . . . . Targets Rammed . | . . . . . . . . Kicked . | . . . . . . . . Crushed . | . . . . . . . . Highest Temperature 378 | . 226 378 23 153 249 195 309 Average Temperature 70 | . 61 95 6 11 66 66 120 Received Heat Transfer 1836 | . 219 255 99 825 81 342 15 Siege Activations . | . . . . . . . . Martial Activations . | . . . . . . . . Shielding Activations . | . . . . . . . . Robots Disrupted . | . . . . . . . . Combat Hostiles . | . . . . . . . . Robots Corrupted 3 | . 1 . . 2 . . . Combat Hostiles 2 | . . . . 2 . . . Parts Fried 8 | 1 3 . . 4 . . . Impact Corruptions 5 | . . . . 5 . . . Robots Melted . | . . . . . . . . Combat Hostiles . | . . . . . . . . Parts Melted 22 | . . . . 8 . 3 11 Heat Transferred 6041 | . 100 300 . 2453 411 1506 1271 Parts Sabotaged . | . . . . . . . . Parts Stolen . | . . . . . . . . Parts Stripped . | . . . . . . . . Power Chain Reactions 13 | . 3 3 . . 5 1 1 Alert | -11 -10 -9 -8 -8 -8 -7 -7 ------- Run | Yrd Mat Mat Mat Gar Mat Fac Gar Maximum Alert Level 5 | . . . . 5 3 1 1 Low Security (%) 45 | 100 100 100 100 9 . 24 4 Level 1 23 | . . . . 6 . 75 95 Level 2 10 | . . . . 33 13 . . Level 3 14 | . . . . 24 86 . . Level 4 6 | . . . . 21 . . . Level 5 . | . . . . 3 . . . High Security . | . . . . . . . . Max Security . | . . . . . . . . Peak Influence 1763 | 10 120 187 59 1763 859 393 329 Initial 859 | . . 17 59 26 859 308 199 Average 364 | . 37 87 13 775 763 257 289 Influence Increases 4233 | 20 486 489 144 1917 301 547 329 Destroy 0b10 Robot/C 2100 | . 280 320 100 760 160 340 140 Destroy 0b10 Robot/NC 185 | 20 65 50 10 . 20 20 . Destroy Leader 350 | . 68 90 34 40 56 62 . Allied During Kill 14 | . . . . 3 8 . 3 Successful Hack 77 | . 14 5 . 38 4 4 12 Disable Machine 135 | . 15 . . 15 15 90 . Anti-Garrison Action 1000 | . . . . 900 . . 100 Destroy Structure 222 | . 14 9 . 116 23 31 29 Lose Combat Pursuer 150 | . 30 15 . 45 15 . 45 Influence Decreases 3915 | 20 443 390 245 195 1386 940 296 Entered New Map 1484 | . . 26 83 15 904 370 86 Time Decay 1711 | 20 433 324 152 . 342 440 . Lost Part 400 | . 10 40 10 140 20 110 70 Lost Ally 320 | . . . . 40 120 20 140 Squads Dispatched 21 | . 2 3 7 . 2 7 . Investigation 5 | . 1 2 1 . . 1 . Extermination 3 | . . . . . . 3 . Reinforcement 9 | . 1 1 2 . 2 3 . Assault . | . . . . . . . . Garrison 4 | . . . 4 . . . . Intercept . | . . . . . . . . Searches Triggered . | . . . . . . . . Construction Impeded 1 | . . . . . . 1 . Haulers Reinforced 1 | . . . . . . 1 . Active Scanning Responses . | . . . . . . . . Cargo Convoy Interrupts . | . . . . . . . . Stealth | -11 -10 -9 -8 -8 -8 -7 -7 --------- Run | Yrd Mat Mat Mat Gar Mat Fac Gar Distress Signals 13 | . 3 1 3 . 3 3 . Communications Jammed . | . . . . . . . . Distress Signals . | . . . . . . . . Times Spotted 164 | . 24 21 10 39 18 30 22 Peak Tracking Total 9 | . 5 4 3 6 6 9 6 Tactical Retreats 7 | . 2 1 . 2 1 . 1 Traps | -11 -10 -9 -8 -8 -8 -7 -7 ------- Run | Yrd Mat Mat Mat Gar Mat Fac Gar Traps Triggered 16 | . 4 2 . 5 1 2 2 Indirectly 2 | . . . . . . 2 . Trap Hack Attempts . | . . . . . . . . Triggered . | . . . . . . . . Disarmed . | . . . . . . . . Reprogrammed . | . . . . . . . . Reused . | . . . . . . . . Traps Extracted . | . . . . . . . . Installed . | . . . . . . . . Triggered . | . . . . . . . . Machines | -11 -10 -9 -8 -8 -8 -7 -7 ---------- Run | Yrd Mat Mat Mat Gar Mat Fac Gar Machines Disabled 22 | . 1 . . 12 1 6 2 Max in Single Turn 5 | . 1 . . 2 1 5 1 Garrison Relay 10 | . . . . 8 . . 2 Phase Generator 1 | . . . . 1 . . . Machines Repaired . | . . . . . . . . Machines Dismantled . | . . . . . . . . Machines Sabotaged . | . . . . . . . . Overloaded Fab Kills . | . . . . . . . . Hacking | -11 -10 -9 -8 -8 -8 -7 -7 --------- Run | Yrd Mat Mat Mat Gar Mat Fac Gar Machines Accessed 22 | . 5 4 4 2 2 4 1 Terminals 19 | . 5 4 3 2 2 2 1 Fabricators 1 | . . . . . . 1 . Repair Stations . | . . . . . . . . Recycling Units . | . . . . . . . . Scanalyzers . | . . . . . . . . Garrison Access 2 | . . . 1 . . 1 . Total Hacks 49 | . 14 10 10 3 4 6 2 Successful 23 | . 8 3 4 3 1 3 1 Failed 26 | . 6 7 6 . 3 3 1 Catastrophic 3 | . . . 2 . . 1 . Database Lockouts . | . . . . . . . . Manual 33 | . 11 7 7 . 4 4 . Terminals 46 | . 14 10 9 3 4 4 2 Fabricators 1 | . . . . . . 1 . Repair Stations . | . . . . . . . . Recycling Units . | . . . . . . . . Scanalyzers . | . . . . . . . . Garrison Access 2 | . . . 1 . . 1 . Terminal Hacks 12 | . 5 2 1 3 . . 1 Robot Schematic 1 | . 1 . . . . . . Robot Analysis 1 | . 1 . . . . . . Prototype ID Bank 2 | . 1 1 . . . . . Emergency Access Points 2 | . . . . 1 . . 1 Transport Status 1 | . 1 . . . . . . Hauler Manifests 3 | . 1 1 1 . . . . Garrison Registry 2 | . . . . 2 . . . Fabricator Hacks 1 | . . . . . . 1 . Network Status 1 | . . . . . . 1 . Repair Station Hacks . | . . . . . . . . Recycling Unit Hacks . | . . . . . . . . Scanalyzer . | . . . . . . . . Garrison Access Hacks 2 | . . . 1 . . 1 . Unlock Access 2 | . . . 1 . . 1 . Unauthorized Hacks 8 | . 3 1 2 . 1 1 . Terminals 8 | . 3 1 2 . 1 1 . Botnet 8 | . 3 1 2 . 1 1 . Fabricators . | . . . . . . . . Repair Stations . | . . . . . . . . Recycling Units . | . . . . . . . . Scanalyzers . | . . . . . . . . Garrison Access . | . . . . . . . . Data Cores Recovered . | . . . . . . . . Used . | . . . . . . . . Hacking Detections 16 | . 3 4 3 1 2 2 1 Full Trace Events 2 | . 1 . . . . 1 . Feedback Events . | . . . . . . . . Feedback Blocked . | . . . . . . . . Robot Schematics Acquired 1 | . 1 . . . . . . Robots Built . | . . . . . . . . Authchips . | . . . . . . . . Time . | . . . . . . . . Total Robot Build Rating . | . . . . . . . . Part Schematics Acquired . | . . . . . . . . Parts Built . | . . . . . . . . Authchips . | . . . . . . . . Time . | . . . . . . . . Total Part Build Rating . | . . . . . . . . Parts Repaired . | . . . . . . . . Time . | . . . . . . . . Parts Recycled . | . . . . . . . . Recycled Matter . | . . . . . . . . Retrieved Matter . | . . . . . . . . Retrieved Components . | . . . . . . . . Parts Scanalyzed . | . . . . . . . . Part Schematics Acquired . | . . . . . . . . Parts Damaged . | . . . . . . . . Bothacking | -11 -10 -9 -8 -8 -8 -7 -7 ------------ Run | Yrd Mat Mat Mat Gar Mat Fac Gar Used RIF Installer 3 | . . . . 1 . . 2 Zone Cloak 1 | . . . . . . . 1 Program Shield 1 | . . . . . . . 1 Robots Hacked 20 | . . . . 1 8 1 10 Non-combat 1 | . . . . . 1 . . Combat 19 | . . . . 1 7 1 10 Robot Hacks Applied 21 | . . . . 1 8 1 11 no_distress 1 | . . . . . 1 . . scatter_targeting 1 | . . . . . 1 . . amplify_resonance 3 | . . . . . . . 3 overwrite_iff 3 | . . . . 1 1 . 1 streamctrl_high 1 | . . . . . 1 . . formatsys_high 12 | . . . . . 4 1 7 Relay Couplers Released 42 | . . . . 32 . . 10 Machine Destruction 42 | . . . . 32 . . 10 Attached 12 | . . . . 2 3 1 6 Fabnet Peak Effective % . | . . . . . . . . Robots Rewired 2 | . . . . 2 . . . Allies Hacked 1 | . . . . 1 . . . Hacks Repelled . | . . . . . . . . Allies | -11 -10 -9 -8 -8 -8 -7 -7 -------- Run | Yrd Mat Mat Mat Gar Mat Fac Gar Total Allies 18 | . . . . 3 6 1 8 Largest Group 2 | . . . . 2 2 1 2 Highest-Rated Group 56 | . . . . 56 32 21 32 Highest-Rated Ally 32 | . . . . 31 16 21 32 Total Orders . | . . . . . . . . Ally Attacks 63 | . . . . 4 36 4 19 Total Damage 1094 | . . . . 82 623 89 300 Kills 9 | . . . . 1 5 . 3 Allies Corrupted 1 | . . . . . . 1 . Allies Melted . | . . . . . . . . Intel | -11 -10 -9 -8 -8 -8 -7 -7 ------- Run | Yrd Mat Mat Mat Gar Mat Fac Gar Active Infowar (turns) 3878 | 1 406 468 430 716 503 989 365 Sensors 1 | . 1 . . . . . . Terrain 537 | . . 468 69 . . . . Structural 2240 | . . . 361 716 503 660 . Seismic 406 | 1 405 . . . . . . Machine Analysis 694 | . . . . . . 329 365 Robot Analysis Total 1 | . 1 . . . . . . Derelict Logs Recovered . | . . . . . . . . Drone Launches . | . . . . . . . . Drone Recoveries . | . . . . . . . . Exploration | -11 -10 -9 -8 -8 -8 -7 -7 ------------- Run | Yrd Mat Mat Mat Gar Mat Fac Gar Turns Passed 8776 | 128 1615 895 780 2404 764 1091 1099 Spaces Moved 3455 | 49 598 392 337 1067 371 409 232 Core 16 | 12 . . . . . . 4 Treads 429 | 37 389 . . . . . 3 Legs 62 | . . . . . . . 62 Wheels 2948 | . 209 392 337 1067 371 409 163 Hover . | . . . . . . . . Flight . | . . . . . . . . Fastest Speed 50 | 50 130 130 140 135 135 150 180 Average Speed 169 | 133 149 139 151 155 145 195 360 Slowest Speed 1450 | 160 160 190 155 210 210 225 1450 Overloaded Moves . | . . . . . . . . Propulsion Burnouts . | . . . . . . . . Robots Hopped . | . . . . . . . . Potential Cave-ins . | . . . . . . . . Cave-ins Triggered . | . . . . . . . . Exploration Rate (%) 46 | 4 79 54 39 97 36 18 43 Regions Visited 7 Branch Regions . Pre-discovered Areas . | . . . . . . . . Known Exits Taken 3 | . 1 . 1 . . 1 . Unknown Exits Taken 3 | 1 . 1 . . 1 . . Scrap Searched . | . . . . . . . . Spaces Dug 4 | . . . . 1 . 3 . Terrain Destroyed 182 | . 11 12 . 102 21 32 4 Melee 4 | . . . . 1 . 3 . Projectile . | . . . . . . . . AOE 178 | . 11 12 . 101 21 29 4 Terrain Rammed . | . . . . . . . . Walls Destroyed . | . . . . . . . . Machines Disabled . | . . . . . . . . Actions | -11 -10 -9 -8 -8 -8 -7 -7 --------- Run | Yrd Mat Mat Mat Gar Mat Fac Gar Total 5651 | 87 1212 647 564 1519 569 628 425 Wait 1332 | 7 502 140 173 162 138 135 75 Move 3450 | 48 597 391 337 1066 370 409 232 Hop . | . . . . . . . . Pick Up 140 | 13 27 26 12 29 11 11 11 Fast Attach 15 | 1 2 . 2 3 2 3 2 Attach 63 | 6 3 9 5 14 7 9 10 Detach 4 | . . . . . . 1 3 Swap 67 | . 5 10 2 20 8 11 11 Drop 78 | . 15 20 9 18 9 4 3 Fire 406 | 12 61 51 24 136 24 42 56 Melee 37 | . . . . 28 . 3 6 Ram . | . . . . . . . . Kick . | . . . . . . . . Crush . | . . . . . . . . Escape Stasis 51 | . . . . 35 . . 16 Rewire 8 | . . . . 8 . . . Trap . | . . . . . . . . Miscellaneous . | . . . . . . . . Route ------- -11/Scrapyard -10/Materials (discovered 6 exits: *Mat x3 / *Min x2 / [*Sub]) -9/Materials (discovered 3 exits: *Mat x2 / [*Min]) -8/Materials (discovered 3 exits: *Fac / [*Sto] / Gar) -8/Garrison (discovered 3 exits: *Mat x3) -8/Materials -7/Factory -7/Garrison History --------- Turn | Location | Event 2 | -11/Scrapyard | Met Revision 17 16 | -11/Scrapyard | Discovered new exit (range 15) 129 | -11/Scrapyard | Entered Materials 304 | -10/Materials | Build established: Mutant 416 | -10/Materials | Discovered new exit (range 5) 587 | -10/Materials | Discovered new exit (range 9) 588 | -10/Materials | Discovered new exit (range 15) 794 | -10/Materials | Discovered new exit (range 8) 918 | -10/Materials | Discovered new exit (range 4) 950 | -10/Materials | Discovered new exit (range 16) 1307 | -10/Materials | Core integrity fell below 50% 1331 | -10/Materials | Identified exit to Mines 1377 | -10/Materials | Identified exit to Materials 1744 | -10/Materials | Entered another Materials area 1744 | -9/Materials | Evolved 2 slots: Utility x2 2032 | -9/Materials | Discovered new exit (range 16) 2391 | -9/Materials | Discovered new exit (range 6) 2541 | -9/Materials | Discovered new exit (range 11) 2639 | -9/Materials | Entered another Materials area 2639 | -8/Materials | Evolved 2 slots: Utility x2 2842 | -8/Materials | Garrison activated, responded to threat 2921 | -8/Materials | Discovered new exit (range 5) 3253 | -8/Materials | Discovered new exit (range 16) 3306 | -8/Materials | Met 7R-MNS 3359 | -8/Materials | Garrison activated, responded to threat 3419 | -8/Materials | Identified exit to Garrison 3419 | -8/Materials | Entered Garrison 3441 | -8/Garrison | Triggered checkpoint 3621 | -8/Garrison | Garrison Relay disabled 3712 | -8/Garrison | Triggered checkpoint 3827 | -8/Garrison | Triggered checkpoint 3920 | -8/Garrison | Discovered new exit (range 15) 4025 | -8/Garrison | Triggered checkpoint 4269 | -8/Garrison | Discovered new exit (range 9) 4323 | -8/Garrison | Discovered new exit (range 30) 4323 | -8/Garrison | Discovered new exit (range 16) 4323 | -8/Garrison | Discovered new exit (range 57) 4403 | -8/Garrison | Installed Relay Interface Framework 4551 | -8/Garrison | Triggered checkpoint 4670 | -8/Garrison | Phase Generator disabled 4828 | -8/Garrison | Lost 4 parts (1p1n2u) 4831 | -8/Garrison | Build established: Scavenger-Mutant 4891 | -8/Garrison | Triggered checkpoint 4914 | -8/Garrison | Garrison Relay disabled 5102 | -8/Garrison | Garrison Relay disabled 5247 | -8/Garrison | Build established: Bothacker-Mutant 5297 | -8/Garrison | P-60 Hacker assimilated allied IZ-VGQ(l) 5306 | -8/Garrison | Core integrity fell below 50% 5362 | -8/Garrison | Lost 4 parts (1p1n2w) 5499 | -8/Garrison | Triggered checkpoint 5557 | -8/Garrison | Discovered new exit (range 30) 5557 | -8/Garrison | Discovered new exit (range 16) 5557 | -8/Garrison | Discovered new exit (range 57) 5581 | -8/Garrison | Triggered checkpoint 5633 | -8/Garrison | Garrison Relay disabled 5655 | -8/Garrison | Garrison Relay disabled 5688 | -8/Garrison | Core integrity fell below 20% 5742 | -8/Garrison | Garrison Relay disabled 5746 | -8/Garrison | Garrison Relay disabled 5753 | -8/Garrison | Garrison Relay disabled 5823 | -8/Garrison | Entered Materials 6050 | -8/Materials | Discovered new exit (range 15) 6111 | -8/Materials | Lost 3 allies 6587 | -8/Materials | Entered Factory 6587 | -7/Factory | Evolved 2 slots: Utility x2 7279 | -7/Factory | System corruption reached 10% 7311 | -7/Factory | Lost 7 parts (1p2n2u2w) 7325 | -7/Factory | Core integrity fell below 50% 7678 | -7/Factory | Identified exit to Garrison 7678 | -7/Factory | Entered Garrison 7797 | -7/Garrison | Expanded RIF knowledge: Program Shield 7832 | -7/Garrison | Triggered checkpoint 7884 | -7/Garrison | Garrison Relay disabled 8014 | -7/Garrison | Triggered checkpoint 8205 | -7/Garrison | Garrison Relay disabled 8225 | -7/Garrison | Triggered checkpoint 8241 | -7/Garrison | Core integrity fell below 20% 8293 | -7/Garrison | Lost 3 parts (1p1n1u) 8453 | -7/Garrison | Expanded RIF knowledge: Zone Cloak 8777 | -7/Garrison | Destroyed by S-27 Virus with Autogun Last Messages --------------- 08453_ Expanded RIF knowledge: Zone Cloak. 08464_ System corrupted: Matter fused (-5). 08518_ System corrupted: Heat flow error (+291). 08564_ M0RNSCTX|/CB7ZTV#1IJXC3YWH2J0WSB 08586_ >W4ILCEW9BQ8MAKYTJPKWQ Q6VWAKMPMN 08604_ ,WPXBCX/#ZB/ V#4